fUST/lending_fUST_20260521
["ID","MTS","AMOUNT","RATE_DAILY","PERIOD"]
[422745948,1779344856000,5000.0,7e-05,2]
[422745949,1779344871000,5000.0,7e-05,2]
[422745951,1779344879000,5000.0,7e-05,2]
[422745952,1779344893000,5000.0,7e-05,2]
[422745953,1779344901000,5000.0,7e-05,2]
[422745954,1779344910000,200.0,0.00015337,120]
[422745955,1779344915000,5000.0,7e-05,2]
[422745956,1779344923000,5000.0,7e-05,2]
[422745957,1779344929000,325.9692127,6.874e-05,2]
[422745958,1779344938000,5000.0,7e-05,2]
[422745960,1779344946000,5000.0,7e-05,2]
[422745969,1779344954000,5000.0,7e-05,2]
[422745970,1779344962000,5000.0,7e-05,2]
[422745971,1779344969000,5000.0,7e-05,2]
[422745972,1779344970000,200.0,0.0001237,120]
[422745974,1779344977000,5000.0,7e-05,2]
[422745975,1779344985000,5000.0,7e-05,2]
[422745976,1779344993000,5000.0,7e-05,2]
[422745977,1779345001000,5000.0,7e-05,2]
[422745978,1779345004000,151.0,6.874e-05,2]
[422745979,1779345006000,456.6225983,6.9e-05,2]
[422745980,1779345009000,5000.0,7e-05,2]
[422745984,1779345017000,5000.0,7e-05,2]
[422745985,1779345025000,5000.0,7e-05,2]
[422746032,1779345032000,-500.0,7.219e-05,2]
[422746061,1779345032000,-500.0,7.219e-05,2]
[422746059,1779345032000,-500.0,7.219e-05,2]
[422746036,1779345032000,-500.0,7.219e-05,2]
[422746037,1779345032000,-500.0,7.219e-05,2]
[422746034,1779345032000,-196.97460749,7.219e-05,2]
[422746043,1779345032000,-500.0,7.219e-05,2]
[422746045,1779345032000,-540.52365427,7.219e-05,2]
[422746028,1779345032000,-500.0,7.219e-05,2]
[422746041,1779345032000,-500.0,7.219e-05,2]
[422746030,1779345032000,-500.0,7.219e-05,2]
[422746024,1779345032000,-500.0,7.219e-05,2]
[422746022,1779345032000,-300.0,7.218e-05,2]
[422746020,1779345032000,-661.11496228,7.133e-05,2]
[422746026,1779345032000,-500.0,7.219e-05,2]
[422746049,1779345032000,-251.10177306,7.219e-05,2]
[422746047,1779345032000,-500.0,7.219e-05,2]
[422746063,1779345032000,-500.0,7.219e-05,2]
[422746039,1779345032000,-500.0,7.219e-05,2]
[422746052,1779345032000,-500.0,7.219e-05,2]
[422746056,1779345032000,-500.0,7.219e-05,2]
[422746094,1779345032000,-2581.36439249,7.22e-05,2]
[422746092,1779345032000,-1328.16922352,7.22e-05,2]
[422746080,1779345032000,-500.0,7.219e-05,2]
[422746081,1779345032000,-500.0,7.219e-05,2]
[422746088,1779345032000,-763.77151649,7.22e-05,2]
[422746085,1779345032000,-10382.29190489,7.22e-05,2]
[422746078,1779345032000,-500.0,7.219e-05,2]
[422746076,1779345032000,-437.88222524,7.219e-05,2]
[422746090,1779345032000,-406.30584553,7.22e-05,2]
[422746073,1779345032000,-500.0,7.219e-05,2]
[422746071,1779345032000,-500.0,7.219e-05,2]
[422746069,1779345032000,-500.0,7.219e-05,2]
[422746057,1779345032000,-500.0,7.219e-05,2]
[422746065,1779345032000,-500.0,7.219e-05,2]
[422746054,1779345032000,-500.0,7.219e-05,2]
[422746083,1779345032000,-600.0,7.219e-05,2]
[422746067,1779345032000,-500.0,7.219e-05,2]
[422746181,1779345039000,-500.0,8.219e-05,2]
[422746183,1779345039000,-500.0,8.219e-05,2]
[422746180,1779345039000,-720.0,8.21e-05,2]
[422746175,1779345039000,-456.6225983,7.696e-05,2]
[422746169,1779345039000,-325.9692128,7.696e-05,2]
[422746172,1779345039000,-456.6225983,7.696e-05,2]
[422746179,1779345039000,-420.0,7.939e-05,2]
[422746173,1779345039000,-151.0,7.696e-05,2]
[422746184,1779345039000,-660.62,8.219e-05,2]
[422746177,1779345039000,-19776.6545502,7.85e-05,2]
[422746192,1779345039000,-500.0,8.219e-05,2]
[422746196,1779345039000,-500.0,8.219e-05,2]
[422746186,1779345039000,-500.0,8.219e-05,2]
[422746185,1779345039000,-3446.61,8.219e-05,2]
[422746190,1779345039000,-500.0,8.219e-05,2]
[422746187,1779345039000,-500.0,8.219e-05,2]
[422746191,1779345039000,-500.0,8.219e-05,2]
[422746188,1779345039000,-500.0,8.219e-05,2]
[422746189,1779345039000,-500.0,8.219e-05,2]
[422746193,1779345039000,-500.0,8.219e-05,2]
[422746194,1779345039000,-500.0,8.219e-05,2]
[422746195,1779345039000,-500.0,8.219e-05,2]
[422746171,1779345039000,-456.6225983,7.696e-05,2]
[422746182,1779345039000,-435.50509877,8.219e-05,2]
[422746170,1779345039000,-456.6225983,7.696e-05,2]
[422746198,1779345039000,-308.21175402,8.219e-05,2]
[422746176,1779345039000,-532.7023281,7.722e-05,2]
[422746148,1779345039000,-300.0,7.464e-05,2]
[422746145,1779345039000,-5000.0,7.148e-05,2]
[422746147,1779345039000,-300.0,7.464e-05,2]
[422746151,1779345039000,-300.0,7.464e-05,2]
[422746150,1779345039000,-300.0,7.464e-05,2]
[422746149,1779345039000,-300.0,7.464e-05,2]
[422746146,1779345039000,-114081.57149534,7.22e-05,2]
[422746152,1779345039000,-300.0,7.464e-05,2]
[422746154,1779345039000,-300.0,7.464e-05,2]
[422746165,1779345039000,-151.0,7.692e-05,2]
[422746153,1779345039000,-300.0,7.464e-05,2]
[422746174,1779345039000,-456.6225983,7.696e-05,2]
[422746155,1779345039000,-300.0,7.464e-05,2]
[422746158,1779345039000,-300.0,7.464e-05,2]
[422746157,1779345039000,-300.0,7.464e-05,2]
[422746159,1779345039000,-300.0,7.464e-05,2]
[422746162,1779345039000,-600.0,7.464e-05,2]
[422746160,1779345039000,-300.0,7.464e-05,2]
[422746163,1779345039000,-152.0,7.586e-05,7]
[422746161,1779345039000,-300.0,7.464e-05,2]
[422746166,1779345039000,-456.6225984,7.696e-05,2]
[422746168,1779345039000,-325.9692127,7.696e-05,2]
[422746167,1779345039000,-326.9623459,7.696e-05,2]
[422746178,1779345039000,-396.0271934,7.85e-05,2]
[422746156,1779345039000,-300.0,7.464e-05,2]
[422746206,1779345039000,-656.16,8.219e-05,2]
[422746247,1779345039000,-500.0,8.493e-05,2]
[422746197,1779345039000,-500.0,8.219e-05,2]
[422746228,1779345039000,-660.62,8.493e-05,2]
[422746232,1779345039000,-723.16,8.493e-05,2]
[422746227,1779345039000,-500.0,8.493e-05,2]
[422746229,1779345039000,-3446.61,8.493e-05,2]
[422746230,1779345039000,-582.83,8.493e-05,2]
[422746231,1779345039000,-500.0,8.493e-05,2]
[422746235,1779345039000,-500.0,8.493e-05,2]
[422746236,1779345039000,-500.0,8.493e-05,2]
[422746239,1779345039000,-500.0,8.493e-05,2]
[422746237,1779345039000,-656.16,8.493e-05,2]
[422746238,1779345039000,-500.0,8.493e-05,2]
[422746234,1779345039000,-500.0,8.493e-05,2]
[422746241,1779345039000,-544.57,8.493e-05,2]
[422746244,1779345039000,-500.0,8.493e-05,2]
[422746242,1779345039000,-500.0,8.493e-05,2]
[422746245,1779345039000,-500.0,8.493e-05,2]
[422746248,1779345039000,-2468.08,8.493e-05,2]
[422746249,1779345039000,-678.98,8.493e-05,2]
[422746250,1779345039000,-306.62712424,8.5e-05,2]
[422746252,1779345039000,-306.62712424,8.6e-05,2]
[422746253,1779345039000,-308.06694334,8.6e-05,2]
[422746246,1779345039000,-505.27,8.493e-05,2]
[422746205,1779345039000,-500.0,8.219e-05,2]
[422746251,1779345039000,-308.06694334,8.5e-05,2]
[422746240,1779345039000,-500.0,8.493e-05,2]
[422746233,1779345039000,-500.0,8.493e-05,2]
[422746243,1779345039000,-500.0,8.493e-05,2]
[422746226,1779345039000,-500.0,8.493e-05,2]
[422746202,1779345039000,-500.0,8.219e-05,2]
[422746225,1779345039000,-160.0,8.405e-05,2]
[422746199,1779345039000,-582.83,8.219e-05,2]
[422746203,1779345039000,-500.0,8.219e-05,2]
[422746200,1779345039000,-500.0,8.219e-05,2]
[422746204,1779345039000,-500.0,8.219e-05,2]
[422746201,1779345039000,-723.16,8.219e-05,2]
[422746215,1779345039000,-505.27,8.219e-05,2]
[422746213,1779345039000,-500.0,8.219e-05,2]
[422746212,1779345039000,-500.0,8.219e-05,2]
[422746220,1779345039000,-163.02422954,8.311e-05,2]
[422746209,1779345039000,-500.0,8.219e-05,2]
[422746207,1779345039000,-500.0,8.219e-05,2]
[422746208,1779345039000,-500.0,8.219e-05,2]
[422746224,1779345039000,-766.48970852,8.405e-05,2]
[422746217,1779345039000,-2468.08,8.219e-05,2]
[422746223,1779345039000,-161.7158655,8.405e-05,2]
[422746221,1779345039000,-306.62712424,8.4e-05,2]
[422746211,1779345039000,-500.0,8.219e-05,2]
[422746214,1779345039000,-500.0,8.219e-05,2]
[422746222,1779345039000,-308.06694334,8.4e-05,2]
[422746218,1779345039000,-678.98,8.219e-05,2]
[422746216,1779345039000,-500.0,8.219e-05,2]
[422746210,1779345039000,-544.57,8.219e-05,2]
[422746219,1779345039000,-162.81698026,8.311e-05,2]
[422746295,1779345040000,-1413.0,8.833e-05,2]
[422746303,1779345040000,-161.3008,8.988e-05,3]
[422746296,1779345040000,-443.0,8.833e-05,2]
[422746299,1779345040000,-492.36420123,8.912e-05,2]
[422746293,1779345040000,-647.0,8.833e-05,2]
[422746302,1779345040000,-190.01342627,8.961e-05,2]
[422746297,1779345040000,-557.0,8.833e-05,2]
[422746298,1779345040000,-185.0,8.833e-05,2]
[422746292,1779345040000,-901.08842852,8.791e-05,2]
[422746294,1779345040000,-2203.0,8.833e-05,2]
[422746289,1779345040000,-500.0,8.767e-05,2]
[422746305,1779345040000,-864.0,9.032e-05,2]
[422746291,1779345040000,-678.98,8.767e-05,2]
[422746306,1779345040000,-617.52226923,9.041e-05,2]
[422746317,1779345040000,-500.0,9.041e-05,2]
[422746313,1779345040000,-500.0,9.041e-05,2]
[422746309,1779345040000,-582.83,9.041e-05,2]
[422746307,1779345040000,-660.62,9.041e-05,2]
[422746315,1779345040000,-656.16,9.041e-05,2]
[422746312,1779345040000,-500.0,9.041e-05,2]
[422746311,1779345040000,-723.16,9.041e-05,2]
[422746308,1779345040000,-3446.61,9.041e-05,2]
[422746314,1779345040000,-500.0,9.041e-05,2]
[422746310,1779345040000,-500.0,9.041e-05,2]
[422746325,1779345040000,-500.0,9.041e-05,2]
[422746327,1779345040000,-678.98,9.041e-05,2]
[422746318,1779345040000,-544.57,9.041e-05,2]
[422746326,1779345040000,-2468.08,9.041e-05,2]
[422746301,1779345040000,-11926.51618786,8.947e-05,21]
[422746304,1779345040000,-190.43376199,9.03e-05,21]
[422746290,1779345040000,-2468.08,8.767e-05,2]
[422746270,1779345040000,-723.16,8.767e-05,2]
[422746287,1779345040000,-500.0,8.767e-05,2]
[422746320,1779345040000,-500.0,9.041e-05,2]
[422746258,1779345040000,-308.06694334,8.7e-05,2]
[422746256,1779345040000,-306.62712424,8.7e-05,2]
[422746257,1779345040000,-308.06694334,8.7e-05,2]
[422746254,1779345040000,-1465.65230303,8.602e-05,2]
[422746255,1779345040000,-306.62712424,8.7e-05,2]
[422746260,1779345040000,-191.37985878,8.747e-05,2]
[422746261,1779345040000,-764.75391567,8.747e-05,2]
[422746271,1779345040000,-500.0,8.767e-05,2]
[422746259,1779345040000,-587.0,8.733e-05,2]
[422746264,1779345040000,-783.58748036,8.767e-05,2]
[422746267,1779345040000,-3446.61,8.767e-05,2]
[422746262,1779345040000,-196.09296305,8.767e-05,2]
[422746265,1779345040000,-500.0,8.767e-05,2]
[422746300,1779345040000,-594.63574309,8.916e-05,2]
[422746269,1779345040000,-500.0,8.767e-05,2]
[422746266,1779345040000,-660.62,8.767e-05,2]
[422746268,1779345040000,-582.83,8.767e-05,2]
[422746272,1779345040000,-500.0,8.767e-05,2]
[422746276,1779345040000,-500.0,8.767e-05,2]
[422746275,1779345040000,-656.16,8.767e-05,2]
[422746277,1779345040000,-500.0,8.767e-05,2]
[422746284,1779345040000,-500.0,8.767e-05,2]
[422746282,1779345040000,-500.0,8.767e-05,2]
[422746274,1779345040000,-184.50006594,8.767e-05,2]
[422746280,1779345040000,-500.0,8.767e-05,2]
[422746278,1779345040000,-544.57,8.767e-05,2]
[422746273,1779345040000,-500.0,8.767e-05,2]
[422746288,1779345040000,-505.27,8.767e-05,2]
[422746286,1779345040000,-500.0,8.767e-05,2]
[422746263,1779345040000,-303.37797236,8.767e-05,2]
[422746316,1779345040000,-585.44749003,9.041e-05,2]
[422746381,1779345040000,-160.0,9.529e-05,5]
[422746322,1779345040000,-500.0,9.041e-05,2]
[422746388,1779345040000,-500.0,9.589e-05,2]
[422746387,1779345040000,-500.0,9.589e-05,2]
[422746378,1779345040000,-500.0,9.392e-05,2]
[422746389,1779345040000,-500.0,9.589e-05,2]
[422746379,1779345040000,-21005.04897302,9.5e-05,2]
[422746382,1779345040000,-660.62,9.589e-05,2]
[422746383,1779345040000,-3446.61,9.589e-05,2]
[422746385,1779345040000,-500.0,9.589e-05,2]
[422746380,1779345040000,-160.0,9.529e-05,5]
[422746392,1779345040000,-500.0,9.589e-05,2]
[422746409,1779345040000,-1816.22586,9.634e-05,2]
[422746405,1779345040000,-678.98,9.589e-05,2]
[422746394,1779345040000,-544.57,9.589e-05,2]
[422746396,1779345040000,-616.92797439,9.589e-05,2]
[422746386,1779345040000,-723.16,9.589e-05,2]
[422746407,1779345040000,-823.0,9.607e-05,2]
[422746401,1779345040000,-500.0,9.589e-05,2]
[422746399,1779345040000,-500.0,9.589e-05,2]
[422746403,1779345040000,-505.27,9.589e-05,2]
[422746402,1779345040000,-500.0,9.589e-05,2]
[422746400,1779345040000,-500.0,9.589e-05,2]
[422746404,1779345040000,-2468.08,9.589e-05,2]
[422746410,1779345040000,-3472.451721,9.634e-05,2]
[422746413,1779345040000,-7095.506636,9.637e-05,2]
[422746412,1779345040000,-3627.753318,9.637e-05,2]
[422746411,1779345040000,-160.0,9.637e-05,2]
[422746415,1779345040000,-205.665733,9.637e-05,2]
[422746414,1779345040000,-160.0,9.637e-05,2]
[422746416,1779345040000,-251.331466,9.637e-05,2]
[422746328,1779345040000,-2378.54297236,9.094e-05,2]
[422746406,1779345040000,-759.29365139,9.59e-05,2]
[422746384,1779345040000,-582.83,9.589e-05,2]
[422746408,1779345040000,-160.0,9.634e-05,2]
[422746377,1779345040000,-573.85420709,9.372e-05,2]
[422746321,1779345040000,-500.0,9.041e-05,2]
[422746390,1779345040000,-656.16,9.589e-05,2]
[422746319,1779345040000,-500.0,9.041e-05,2]
[422746324,1779345040000,-505.27,9.041e-05,2]
[422746323,1779345040000,-500.0,9.041e-05,2]
[422746329,1779345040000,-401.0,9.1e-05,2]
[422746334,1779345040000,-541.126,9.221e-05,2]
[422746331,1779345040000,-780.11565549,9.133e-05,2]
[422746332,1779345040000,-3107.0,9.2e-05,2]
[422746337,1779345040000,-5346.36996612,9.271e-05,2]
[422746330,1779345040000,-10000.0,9.123e-05,2]
[422746341,1779345040000,-3446.61,9.315e-05,2]
[422746345,1779345040000,-500.0,9.315e-05,2]
[422746343,1779345040000,-582.83,9.315e-05,2]
[422746350,1779345040000,-500.0,9.315e-05,2]
[422746339,1779345040000,-660.62,9.315e-05,2]
[422746352,1779345040000,-500.0,9.315e-05,2]
[422746375,1779345040000,-2468.08,9.315e-05,2]
[422746348,1779345040000,-723.16,9.315e-05,2]
[422746374,1779345040000,-396.18481594,9.315e-05,2]
[422746360,1779345040000,-544.57,9.315e-05,2]
[422746358,1779345040000,-500.0,9.315e-05,2]
[422746356,1779345040000,-656.16,9.315e-05,2]
[422746362,1779345040000,-500.0,9.315e-05,2]
[422746376,1779345040000,-678.98,9.315e-05,2]
[422746370,1779345040000,-500.0,9.315e-05,2]
[422746366,1779345040000,-500.0,9.315e-05,2]
[422746354,1779345040000,-500.0,9.315e-05,2]
[422746368,1779345040000,-500.0,9.315e-05,2]
[422746364,1779345040000,-500.0,9.315e-05,2]
[422746372,1779345040000,-505.27,9.315e-05,2]
[422746427,1779345041000,-507.226801,9.687e-05,2]
[422746433,1779345041000,-3848.353115,9.7e-05,2]
[422746432,1779345041000,-160.0,9.7e-05,2]
[422746439,1779345041000,-160.0,9.745e-05,2]
[422746438,1779345041000,-280.481328,9.735e-05,2]
[422746442,1779345041000,-455.732492,9.745e-05,2]
[422746445,1779345041000,-227.447434,9.749e-05,2]
[422746449,1779345041000,-439.625436,9.783e-05,2]
[422746450,1779345041000,-719.250872,9.783e-05,2]
[422746444,1779345041000,-193.723717,9.749e-05,2]
[422746451,1779345041000,-192.00046,9.797e-05,2]
[422746441,1779345041000,-367.022839,9.745e-05,2]
[422746429,1779345041000,-160.0,9.7e-05,2]
[422746440,1779345041000,-263.511419,9.745e-05,2]
[422746430,1779345041000,-673.741254,9.7e-05,2]
[422746423,1779345041000,-160.0,9.686e-05,2]
[422746431,1779345041000,-1187.482508,9.7e-05,2]
[422746424,1779345041000,-972.209945,9.686e-05,2]
[422746428,1779345041000,-854.453602,9.687e-05,2]
[422746436,1779345041000,-2050.129466,9.731e-05,2]
[422746426,1779345041000,-160.0,9.687e-05,2]
[422746437,1779345041000,-3940.258933,9.731e-05,2]
[422746435,1779345041000,-160.0,9.731e-05,2]
[422746425,1779345041000,-1784.41989,9.686e-05,2]
[422746418,1779345041000,-1027.513471,9.639e-05,2]
[422746420,1779345041000,-160.0,9.682e-05,2]
[422746421,1779345041000,-201.77007,9.682e-05,2]
[422746417,1779345041000,-160.0,9.639e-05,2]
[422746419,1779345041000,-1895.026942,9.639e-05,2]
[422746448,1779345041000,-317.74908,9.779e-05,2]
[422746434,1779345041000,-7536.706231,9.7e-05,2]
[422746446,1779345041000,-160.0,9.779e-05,2]
[422746422,1779345041000,-243.54014,9.682e-05,2]
[422746447,1779345041000,-238.87454,9.779e-05,2]
[422746471,1779345041000,-500.0,9.863e-05,2]
[422746472,1779345041000,-505.27,9.863e-05,2]
[422746474,1779345041000,-678.98,9.863e-05,2]
[422746473,1779345041000,-2468.08,9.863e-05,2]
[422746475,1779345041000,-1000.0,9.935e-05,2]
[422746476,1779345041000,-28453.64614386,9.999e-05,2]
[422746470,1779345041000,-500.0,9.863e-05,2]
[422746481,1779345041000,-580.46239662,0.0001,2]
[422746479,1779345041000,-43446.0,9.999e-05,2]
[422746480,1779345041000,-49450.80617737,0.0001,2]
[422746477,1779345041000,-100000.0,9.999e-05,2]
[422746482,1779345041000,-820.992352,0.0001,2]
[422746483,1779345041000,-24050.89188236,0.0001,2]
[422746443,1779345041000,-160.0,9.749e-05,2]
[422746478,1779345041000,-100000.0,9.999e-05,2]
[422746468,1779345041000,-500.0,9.863e-05,2]
[422746469,1779345041000,-500.0,9.863e-05,2]
[422746465,1779345041000,-656.16,9.863e-05,2]
[422746463,1779345041000,-500.0,9.863e-05,2]
[422746461,1779345041000,-723.16,9.863e-05,2]
[422746464,1779345041000,-500.0,9.863e-05,2]
[422746457,1779345041000,-660.62,9.863e-05,2]
[422746462,1779345041000,-277.4614758,9.863e-05,2]
[422746467,1779345041000,-544.57,9.863e-05,2]
[422746453,1779345041000,-233.545188,9.828e-05,2]
[422746459,1779345041000,-582.83,9.863e-05,2]
[422746456,1779345041000,-168.288798,9.835e-05,2]
[422746458,1779345041000,-3446.61,9.863e-05,2]
[422746460,1779345041000,-490.69954001,9.863e-05,2]
[422746454,1779345041000,-163.59628,9.831e-05,2]
[422746455,1779345041000,-164.814537,9.834e-05,2]
[422746466,1779345041000,-500.0,9.863e-05,2]
[422746452,1779345041000,-3324.43316006,9.8e-05,2]
[422746494,1779345043000,-233.99357275,8.219e-05,2]
[422746495,1779345043000,-500.0,8.493e-05,2]
[422746493,1779345043000,-266.00642725,8.219e-05,2]
[422746497,1779345043000,-2216.28877337,9.8e-05,2]
[422746499,1779345043000,-2185.89669367,0.0001,2]
[422746496,1779345043000,-5000.0,8.679e-05,2]
[422746500,1779345043000,-659.7749991,0.0001,2]
[422746498,1779345043000,-1882.86316255,0.0001,2]
[422746502,1779345043000,-499.48143251,8.767e-05,2]
[422746506,1779345046000,-0.51856749,8.767e-05,2]
[422746505,1779345046000,-500.0,8.219e-05,2]
[422746507,1779345047000,-500.0,9.041e-05,2]
[422746511,1779345047000,-500.0,9.863e-05,2]
[422746512,1779345047000,-3484.94220648,0.0001,2]
[422746510,1779345047000,-738.76292445,9.8e-05,2]
[422746508,1779345047000,-500.0,9.315e-05,2]
[422746509,1779345047000,-500.0,9.589e-05,2]
[422746513,1779345047000,-9844.10313102,0.0001,2]
[422746517,1779345313000,186.0012034,3.603e-05,2]
[422746518,1779345427000,5000.0,7e-05,2]
[422746519,1779345435000,5000.0,7e-05,2]
[422746520,1779345444000,5000.0,7e-05,2]
[422746521,1779345452000,5000.0,7e-05,2]
[422746522,1779345460000,5000.0,7e-05,2]
[422746523,1779345468000,4224.81087903,7e-05,2]
[422746525,1779345476000,5000.0,7e-05,2]
[422746526,1779345483000,5000.0,7e-05,2]
[422746527,1779345498000,5000.0,7e-05,2]
[422746528,1779345506000,5000.0,7e-05,2]
[422746538,1779345518000,-300.0,7.752e-05,2]
[422746536,1779345518000,-300.0,7.6e-05,2]
[422746535,1779345518000,-300.0,7.6e-05,2]
[422746534,1779345518000,-300.0,7.6e-05,2]
[422746539,1779345518000,-300.0,7.752e-05,2]
[422746532,1779345518000,-152.0,7.584e-05,7]
[422746531,1779345518000,-1200.0,7.524e-05,2]
[422746529,1779345518000,-210.36053736,7.119e-05,2]
[422746530,1779345518000,-655.37053941,7.284e-05,2]
[422746533,1779345518000,-152.0,7.584e-05,7]
[422746540,1779345518000,-300.0,7.752e-05,2]
[422746537,1779345518000,-300.0,7.751e-05,2]
[422746541,1779345518000,-300.0,7.752e-05,2]
[422746542,1779345518000,-300.0,7.752e-05,2]
[422746552,1779345518000,-300.0,7.752e-05,2]
[422746551,1779345518000,-300.0,7.752e-05,2]
[422746550,1779345518000,-300.0,7.752e-05,2]
[422746549,1779345518000,-300.0,7.752e-05,2]
[422746553,1779345518000,-600.0,7.906e-05,2]
[422746547,1779345518000,-300.0,7.752e-05,2]
[422746546,1779345518000,-300.0,7.752e-05,2]
[422746545,1779345518000,-300.0,7.752e-05,2]
[422746544,1779345518000,-300.0,7.752e-05,2]
[422746543,1779345518000,-300.0,7.752e-05,2]
[422746548,1779345518000,-300.0,7.752e-05,2]
[422746555,1779345521000,3669.73107677,7e-05,2]
[422746554,1779345521000,1330.26892323,7e-05,2]
[422746561,1779345529000,-500.0,8.219e-05,2]
[422746557,1779345529000,-500.0,8.219e-05,2]
[422746556,1779345529000,-152.0,8.156e-05,30]
[422746559,1779345529000,-520.27154527,8.219e-05,2]
[422746558,1779345529000,-500.0,8.219e-05,2]
[422746560,1779345529000,-2441.35,8.219e-05,2]
[422746563,1779345529000,-500.0,8.219e-05,2]
[422746569,1779345529000,-1748.22,8.219e-05,2]
[422746565,1779345529000,-500.0,8.219e-05,2]
[422746564,1779345529000,-500.0,8.219e-05,2]
[422746566,1779345529000,-500.0,8.219e-05,2]
[422746568,1779345529000,-500.0,8.219e-05,2]
[422746567,1779345529000,-500.0,8.219e-05,2]
[422746570,1779345529000,-125.91845473,8.219e-05,2]
[422746562,1779345529000,-512.24,8.219e-05,2]
[422746571,1779345538000,-5000.0,8.137e-05,2]
[422746572,1779345538000,-374.08154527,8.219e-05,2]
[422746573,1779345538000,-269.88307048,8.219e-05,2]
[422746574,1779345538000,-500.0,8.219e-05,2]
[422746575,1779345538000,-500.0,8.219e-05,2]
[422746576,1779345538000,-500.0,8.219e-05,2]
[422746578,1779345538000,-500.0,8.219e-05,2]
[422746580,1779345538000,-331.0,8.276e-05,2]
[422746581,1779345538000,-1025.03538425,8.4e-05,2]
[422746577,1779345538000,-500.0,8.219e-05,2]
[422746579,1779345538000,-500.0,8.219e-05,2]
[422746583,1779345546000,-5000.0,8.316e-05,2]
[422746586,1779345546000,-161.7158655,8.431e-05,2]
[422746582,1779345546000,-500.0,8.219e-05,2]
[422746584,1779345546000,-200.35577126,8.4e-05,2]
[422746585,1779345546000,-1230.35284876,8.4e-05,2]
[422746591,1779345546000,-300.0,8.492e-05,2]
[422746589,1779345546000,-160.0,8.431e-05,2]
[422746588,1779345546000,-160.0,8.431e-05,2]
[422746590,1779345546000,-500.0,8.492e-05,2]
[422746592,1779345546000,-1021.08580596,8.493e-05,2]
[422746587,1779345546000,-766.48970852,8.431e-05,2]
[422746594,1779345588000,-4000.0,8.169e-05,2]
[422746593,1779345588000,-5000.0,8.087e-05,2]
[422746667,1779346232000,-3283.2454908,7.614e-05,2]
[422746663,1779346232000,-387.995,7.614e-05,2]
[422746665,1779346232000,-406.31779836,7.614e-05,2]
[422746994,1779346238000,-500.0,8.219e-05,2]
[422747000,1779346238000,-500.0,8.219e-05,2]
[422747003,1779346238000,-500.0,8.219e-05,2]
[422746996,1779346238000,-500.0,8.219e-05,2]
[422746998,1779346238000,-500.0,8.219e-05,2]
[422747006,1779346238000,-984.28227901,8.4e-05,2]
[422747004,1779346238000,-1675.38,8.219e-05,2]
[422747007,1779346238000,-160.0,8.431e-05,2]
[422746989,1779346238000,-500.0,8.219e-05,2]
[422747008,1779346238000,-161.7158655,8.431e-05,2]
[422747009,1779346238000,-766.48970852,8.431e-05,2]
[422747005,1779346238000,-980.31292441,8.4e-05,2]
[422746991,1779346238000,-500.0,8.219e-05,2]
[422746988,1779346238000,-500.0,8.219e-05,2]
[422746990,1779346238000,-500.0,8.219e-05,2]
[422746993,1779346238000,-500.0,8.219e-05,2]
[422747002,1779346238000,-500.0,8.219e-05,2]
[422746984,1779346238000,-642.26312863,7.808e-05,2]
[422746985,1779346238000,-4240.1733814,8.163e-05,2]
[422746986,1779346238000,-500.0,8.219e-05,2]
[422746987,1779346238000,-2297.08,8.219e-05,2]
[422746983,1779346238000,-300.0,7.806e-05,2]
[422746982,1779346238000,-1930.71185534,7.691e-05,2]
[422746981,1779346238000,-3069.28814466,7.691e-05,2]
[422746979,1779346238000,-922.44171084,7.614e-05,2]
[422747010,1779346238000,-500.0,8.493e-05,2]
[422746992,1779346238000,-500.0,8.219e-05,2]
[422747016,1779346238000,-500.0,8.493e-05,2]
[422747012,1779346238000,-2297.08,8.493e-05,2]
[422747015,1779346238000,-500.0,8.493e-05,2]
[422747013,1779346238000,-500.0,8.493e-05,2]
[422747038,1779346238000,-151.0,8.545e-05,2]
[422747039,1779346238000,-151.0,8.545e-05,2]